bitfinex-derivatives/quotes_BTCF0:USTF0_20251103
["timestamp","ask_amount","ask_price","bid_price","bid_amount"]
[1762183840641,0.00133948,105830.0,105800.0,0.47825]
[1762183840846,0.00133948,105830.0,105820.0,0.3608]
[1762183841147,0.3608,105870.0,105820.0,0.3608]
[1762183841348,1.5,105900.0,105860.0,0.7216]
[1762183841349,1.8608,105900.0,105860.0,0.7216]
[1762183841651,0.7216,105870.0,105840.0,0.11745]
[1762183841842,0.3608,105900.0,105860.0,0.0944826]
[1762183842146,0.36089699,105900.0,105880.0,0.47825]
[1762183842351,0.51485327,105900.0,105880.0,0.47825]
[1762183842551,0.3608,105900.0,105880.0,0.11745]
[1762183842743,0.3608,105900.0,105860.0,0.3608]
[1762183843144,0.3608,105880.0,105860.0,0.3608]
[1762183843347,0.36089699,105870.0,105800.0,0.29600277]
[1762183843542,0.3608,105880.0,105840.0,0.11745]
[1762183843856,9.699e-05,105860.0,105840.0,0.47825]
[1762183844051,0.09459849,105850.0,105820.0,0.3608]
[1762183844356,0.09459999,105840.0,105820.0,0.3608]
[1762183844558,0.09459189,105850.0,105830.0,0.3608]
[1762183844851,0.09459189,105850.0,105840.0,0.10737]
[1762183845053,0.3638,105890.0,105840.0,0.10737]
[1762183845249,0.4552905,105850.0,105840.0,0.10737]
[1762183845447,9.699e-05,105860.0,105840.0,0.46817]
[1762183845646,0.4552735,105870.0,105840.0,0.46817]
[1762183845849,0.3608,105870.0,105840.0,0.3608]
[1762183846053,0.0945135,105830.0,105800.0,0.20146467]
[1762183846257,0.3608,105840.0,105820.0,0.3608]
[1762183846455,0.0944725,105870.0,105830.0,0.3608]
[1762183846655,0.4552682,105880.0,105840.0,0.46817]
[1762183846856,0.09458139,105860.0,105840.0,0.46817]
[1762183847055,0.09458889,105850.0,105840.0,0.10737]
[1762183847259,0.09458889,105850.0,105820.0,0.3608]
[1762183847260,0.36089699,105850.0,105820.0,0.3608]
[1762183847456,9.699e-05,105830.0,105800.0,0.11745]
[1762183847651,9.699e-05,105820.0,105800.0,0.11745]
[1762183847954,9.699e-05,105820.0,105790.0,8.951e-05]
[1762183847955,9.699e-05,105810.0,105790.0,8.951e-05]
[1762183848148,9.699e-05,105800.0,105790.0,8.951e-05]
[1762183848353,0.3608,105800.0,105780.0,0.00302254]
[1762183848549,0.36347971,105800.0,105760.0,0.3708]
[1762183848751,0.36347971,105800.0,105760.0,0.01]
[1762183848953,0.3608,105790.0,105760.0,0.01]
[1762183849151,0.3608,105780.0,105760.0,0.01]
[1762183849354,0.3608,105770.0,105760.0,0.01]
[1762183849554,0.36088951,105770.0,105740.0,0.00312071]
[1762183849756,0.7216,105750.0,105740.0,0.00312071]
[1762183850058,0.73768677,105750.0,105700.0,0.17602439]
[1762183850360,0.3608,105720.0,105700.0,0.17602439]
[1762183850559,0.3608,105710.0,105700.0,0.17602439]
[1762183850764,0.01341377,105720.0,105700.0,0.00799504]
[1762183851058,0.35298468,105710.0,105700.0,0.02125732]
[1762183851453,0.35432708,105710.0,105700.0,0.00799504]
[1762183851653,0.35432708,105710.0,105670.0,0.26884696]
[1762183851654,0.05479,105680.0,105670.0,0.26884696]
[1762183851966,0.63357516,105680.0,105670.0,0.26884696]
[1762183852265,0.39711386,105680.0,105660.0,0.0066647]
[1762183852565,0.51485327,105670.0,105630.0,0.3674105]
[1762183852758,0.23664,105660.0,105640.0,0.3608]
[1762183852960,0.36886009,105670.0,105640.0,0.25019748]
[1762183853158,0.00806009,105670.0,105650.0,0.0066647]
[1762183853363,0.43532647,105680.0,105650.0,0.2349321]
[1762183853662,0.3608,105660.0,105630.0,0.0066105]
[1762183853966,1.5,105650.0,105640.0,0.10737]
[1762183854159,1.5,105650.0,105640.0,0.2349321]
[1762183854355,1.74201263,105650.0,105630.0,0.0066105]
[1762183854559,0.0001032,105640.0,105620.0,0.00312426]
[1762183854860,0.7216,105630.0,105610.0,0.32761999]
[1762183855056,0.10285079,105640.0,105610.0,0.56255209]
[1762183855363,0.10285079,105640.0,105610.0,0.32761999]
[1762183855364,0.3608,105620.0,105610.0,0.32761999]
[1762183855563,0.00010454,105620.0,105610.0,0.32761999]
[1762183855762,0.00010454,105620.0,105610.0,0.56255209]
[1762183855763,0.36359377,105620.0,105610.0,0.56255209]
[1762183855968,0.36359377,105620.0,105610.0,0.04339182]
[1762183856154,0.15684704,105620.0,105610.0,0.2415968]
[1762183856353,0.07472129,105640.0,105610.0,0.6023968]
[1762183856562,1.5,105650.0,105630.0,0.6023968]
[1762183856859,1.50805882,105650.0,105640.0,0.3608]
[1762183857062,0.00805882,105650.0,105640.0,0.7097668]
[1762183857263,0.3608,105690.0,105640.0,0.46817]
[1762183857464,9.186e-05,105650.0,105640.0,0.3608]
[1762183857763,0.3608,105650.0,105630.0,0.22939264]
[1762183857962,0.3608,105650.0,105610.0,0.3608]
[1762183857963,0.10533538,105640.0,105610.0,0.3608]
[1762183858159,0.02559,105640.0,105630.0,0.04339182]
[1762183858355,0.0296229,105640.0,105630.0,0.26205905]
[1762183858557,0.3904229,105640.0,105620.0,0.23598499]
[1762183858760,0.3904229,105640.0,105610.0,0.26968505]
[1762183858761,0.36087672,105630.0,105610.0,0.26968505]
[1762183858953,0.3608,105620.0,105610.0,0.26968505]
[1762183859159,0.3608,105620.0,105610.0,0.23095008]
[1762183859361,0.36214468,105620.0,105600.0,0.23095008]
[1762183859663,0.36214468,105620.0,105600.0,0.10737]
[1762183859664,0.00134468,105620.0,105600.0,0.10737]
[1762183859863,0.36087672,105630.0,105610.0,0.23095008]
[1762183860067,0.36087672,105630.0,105600.0,0.46817]
[1762183860365,0.3608,105620.0,105590.0,0.76185917]
[1762183860558,7.672e-05,105630.0,105620.0,0.23095008]
[1762183860754,0.36942928,105680.0,105650.0,0.10737]
[1762183860959,0.003,105690.0,105670.0,0.5012454]
[1762183861165,0.8368449,105730.0,105700.0,0.10737]
[1762183861365,0.3608,105720.0,105700.0,0.27378252]
[1762183861568,0.55045276,105730.0,105700.0,0.27378252]
[1762183861768,0.91125276,105730.0,105720.0,0.16900289]
[1762183862067,0.07740786,105730.0,105720.0,0.16900289]
[1762183862267,0.003,105730.0,105700.0,0.27378252]
[1762183862469,0.3608,105760.0,105750.0,0.10737]
[1762183863163,0.3608,105760.0,105730.0,0.16903112]
[1762183863164,0.003,105770.0,105730.0,0.16903112]
[1762183863464,0.003,105770.0,105760.0,0.3608]
[1762183863872,0.003,105810.0,105800.0,0.10737]
[1762183864073,0.003,105810.0,105800.0,0.46817]
[1762183864463,0.003,105810.0,105800.0,0.10737]
[1762183864662,0.0945364,105800.0,105790.0,0.11833275]
[1762183864969,0.4553364,105800.0,105790.0,0.11833275]
[1762183865169,0.0945618,105780.0,105760.0,0.16903112]
[1762183865467,0.0945618,105780.0,105770.0,0.89063112]
[1762183865671,0.0945618,105780.0,105770.0,0.90475462]
[1762183865867,0.003,105810.0,105770.0,0.90475462]
[1762183866069,0.3608,105800.0,105780.0,0.3608]
[1762183866273,0.003,105810.0,105780.0,0.3749235]
[1762183866575,0.23632,105800.0,105780.0,0.3749235]
[1762183866774,0.34043713,105790.0,105780.0,0.0141235]
[1762183867068,0.003,105810.0,105800.0,0.10737]
[1762183867279,0.003,105810.0,105800.0,0.1214935]
[1762183867470,0.003,105810.0,105800.0,0.46817]
[1762183867873,0.3608,105830.0,105800.0,0.46817]
[1762183868068,0.3638,105850.0,105820.0,0.3608]
[1762183868378,1.5,105880.0,105850.0,0.10737]
[1762183868575,0.03402742,105880.0,105860.0,0.3608]
[1762183868774,0.03402742,105880.0,105850.0,0.46817]
[1762183869072,1.53402742,105880.0,105870.0,0.3608]
[1762183869274,0.03402742,105880.0,105850.0,0.46817]
[1762183869572,0.003,105890.0,105870.0,0.3608]
[1762183869774,0.03702254,105890.0,105870.0,0.3608]
[1762183870071,0.23612,105880.0,105870.0,0.3608]
[1762183870270,0.34343713,105890.0,105830.0,0.36087105]
[1762183870573,0.03701891,105890.0,105850.0,0.46817]
[1762183870873,0.46799972,105890.0,105850.0,0.46817]
[1762183871070,0.03401891,105890.0,105880.0,0.18239851]
[1762183871272,0.04133801,105900.0,105870.0,0.3608]
[1762183871273,0.07535692,105900.0,105870.0,0.3608]
[1762183871480,0.3608,105890.0,105880.0,0.18239851]
[1762183871773,0.47616029,105890.0,105870.0,0.53479729]
[1762183871976,0.06655546,105890.0,105880.0,0.53479729]
[1762183872174,0.06655546,105890.0,105870.0,0.3608]
[1762183872175,0.23612,105880.0,105830.0,7.105e-05]
[1762183872377,0.01107667,105860.0,105840.0,0.3608]
[1762183872675,0.01107667,105860.0,105850.0,0.17399729]
[1762183872676,0.8067972,105860.0,105850.0,0.17399729]
[1762183872980,0.0945013,105840.0,105830.0,7.105e-05]
[1762183873171,0.4553013,105840.0,105830.0,7.105e-05]
[1762183873372,0.4553013,105840.0,105830.0,0.09454436]
[1762183873679,0.4553013,105840.0,105830.0,7.105e-05]
[1762183873680,0.0945013,105840.0,105830.0,7.105e-05]
[1762183874172,0.01107667,105860.0,105830.0,0.23627105]
[1762183874389,0.01107667,105860.0,105830.0,0.36087105]
[1762183874390,0.04510624,105860.0,105830.0,0.36087105]
[1762183874567,0.40590624,105860.0,105830.0,0.36087105]
[1762183874772,0.74634337,105860.0,105830.0,0.36087105]
[1762183874970,0.74634337,105860.0,105820.0,0.00311836]
[1762183875178,0.34043713,105830.0,105820.0,0.00311836]
[1762183875378,1.06203713,105830.0,105780.0,0.36391953]
[1762183875580,0.3608,105810.0,105780.0,0.36391953]
[1762183875776,0.3608,105830.0,105800.0,0.12997]
[1762183875983,7.005e-05,105820.0,105800.0,0.12997]
[1762183876278,7.005e-05,105820.0,105810.0,0.59708]
[1762183876476,0.37187667,105860.0,105850.0,0.12997]
[1762183876676,0.11387795,105880.0,105850.0,0.36310957]
[1762183876877,0.3608,105910.0,105860.0,0.23616]
[1762183877179,0.3608,105910.0,105900.0,0.12997]
[1762183877180,0.16268279,105910.0,105900.0,0.12997]
[1762183877382,0.16268279,105910.0,105860.0,0.23698132]
[1762183877677,0.3608,105920.0,105900.0,0.12993]
[1762183877870,0.10211188,105910.0,105900.0,0.12993]
[1762183878073,0.003,105930.0,105860.0,0.3608]
[1762183878074,1.5,105920.0,105860.0,0.3608]
[1762183878271,0.3608,105890.0,105850.0,0.07795623]
[1762183878476,0.3608,105890.0,105860.0,0.09444208]
[1762183878776,1.8608,105920.0,105850.0,0.47932048]
[1762183878970,1.9608,105920.0,105860.0,0.50314819]
[1762183879176,0.3608,105990.0,105900.0,0.08348]
[1762183879373,0.3608,105990.0,105950.0,0.7216]
[1762183879680,0.3608,105990.0,105910.0,0.83151999]
[1762183879681,0.03058346,105970.0,105910.0,0.83151999]
[1762183879886,0.3608,105940.0,105910.0,0.46072]
[1762183880178,0.48967,105950.0,105920.0,0.09437968]
[1762183880379,0.57427008,105920.0,105850.0,0.10128]
[1762183880584,0.0944747,105870.0,105840.0,8.698e-05]
[1762183880780,0.0944747,105870.0,105860.0,0.09749686]
[1762183880983,0.4552747,105870.0,105860.0,0.00311718]
[1762183881280,0.19658658,105870.0,105860.0,0.00311718]
[1762183881479,0.55824605,105870.0,105840.0,8.698e-05]
[1762183881681,0.39094501,105850.0,105830.0,0.23616]
[1762183881893,0.88061501,105850.0,105820.0,0.00311836]
[1762183882087,0.3608,105830.0,105820.0,0.00311836]
[1762183882384,0.3608,105840.0,105830.0,0.2362]
[1762183882578,0.39094501,105850.0,105830.0,0.2362]
[1762183882773,7.8e-07,105840.0,105830.0,0.34435694]
[1762183882978,4.11e-06,105840.0,105830.0,0.9581787]
[1762183883183,0.42105417,105870.0,105840.0,0.34069259]
[1762183883389,0.42105417,105870.0,105840.0,0.24619999]
[1762183883679,0.12887,105850.0,105820.0,0.20805963]
[1762183883982,0.3608,105840.0,105820.0,0.30252847]
[1762183884176,0.3608,105840.0,105820.0,0.09446884]
[1762183884377,0.2499882,105830.0,105820.0,0.09446884]
[1762183884579,0.48967,105850.0,105810.0,0.3608]
[1762183884580,0.12887,105850.0,105810.0,0.3608]
[1762183884775,0.48967,105850.0,105810.0,0.3608]
[1762183885087,0.2110865,105820.0,105810.0,0.0945255]
[1762183885277,0.2110865,105820.0,105810.0,0.6373816]
[1762183885584,0.32849263,105890.0,105830.0,0.00999999]
[1762183885791,0.32849263,105890.0,105860.0,0.0944787]
[1762183886089,0.32849263,105890.0,105870.0,0.00999999]
[1762183886290,0.32849263,105890.0,105880.0,0.4552633]
[1762183886586,0.07212795,105910.0,105890.0,0.0944541]
[1762183886792,0.07212795,105910.0,105890.0,0.60687999]
[1762183886983,0.07212795,105910.0,105900.0,0.3305256]
[1762183887180,0.07212795,105910.0,105900.0,0.6913256]
[1762183887381,0.07212795,105910.0,105900.0,0.50249786]
[1762183887584,0.07212795,105910.0,105900.0,0.3608]
[1762183887786,0.42897469,105910.0,105900.0,0.0944287]
[1762183887983,0.14053,105900.0,105870.0,6.977e-05]
[1762183888291,0.02835411,105880.0,105840.0,0.3608]
[1762183888482,0.16888411,105850.0,105820.0,0.36391836]
[1762183888681,0.09589898,105830.0,105820.0,0.00311836]
[1762183888882,0.1015905,105830.0,105820.0,0.00311836]
[1762183889090,0.00807776,105830.0,105820.0,1.09474713]
[1762183889285,0.07556436,105870.0,105840.0,0.0944956]
[1762183889487,0.50133,105900.0,105840.0,0.0944956]
[1762183889488,0.68929263,105890.0,105840.0,0.3608]
[1762183889791,0.68929263,105890.0,105840.0,0.8428391]
[1762183889792,0.003,105890.0,105840.0,0.8428391]
[1762183889993,0.02835411,105850.0,105840.0,0.09449562]
[1762183890193,0.14053,105840.0,105800.0,0.3608]
[1762183890489,0.14172646,105810.0,105800.0,0.09446884]
[1762183890696,0.49223864,105810.0,105800.0,0.09446884]
[1762183890891,0.95765645,105810.0,105800.0,0.09446884]
[1762183891089,0.92534908,105810.0,105790.0,0.3609092]
[1762183891284,0.1133064,105800.0,105790.0,0.3609092]
[1762183891498,0.10716954,105800.0,105790.0,0.83386234]
[1762183891790,9.027e-05,105800.0,105790.0,0.40434419]
[1762183891991,0.02844438,105800.0,105790.0,0.40434419]
[1762183892291,1.09827672,105800.0,105780.0,0.46239953]
[1762183892486,0.3608,105830.0,105790.0,0.23632]
[1762183892689,0.3608,105830.0,105780.0,0.46239953]
[1762183892690,0.32849263,105820.0,105780.0,0.60477737]
[1762183892890,0.3608,105830.0,105780.0,0.98344955]
[1762183893090,0.28663155,105850.0,105820.0,0.0945166]
[1762183893091,0.21036515,105850.0,105820.0,0.0945166]
[1762183893394,0.21036515,105850.0,105840.0,0.0944992]
[1762183893692,0.3638,105890.0,105840.0,1.24289609]
[1762183893992,0.003,105890.0,105870.0,0.28414976]
[1762183894191,0.39215411,105890.0,105860.0,0.3608]
[1762183894399,0.02835411,105880.0,105840.0,0.14197324]
[1762183894587,0.02835411,105870.0,105860.0,0.09445992]
[1762183894788,0.3608,105880.0,105860.0,0.09445992]
[1762183894988,0.33160899,105910.0,105860.0,0.51698968]
[1762183895194,0.33160899,105910.0,105900.0,0.37859566]
[1762183895492,0.33160899,105910.0,105900.0,0.01421192]
[1762183895689,0.33160899,105910.0,105900.0,0.31123719]
[1762183895890,0.33160899,105910.0,105900.0,0.09445992]
[1762183896097,0.66010162,105910.0,105900.0,0.09445992]
[1762183896293,0.14053,105900.0,105850.0,0.4552821]
[1762183896498,0.14053,105900.0,105860.0,0.4552811]
[1762183896499,1.4176277,105900.0,105860.0,0.4552811]
[1762183896793,0.58780507,105890.0,105860.0,0.37869071]
[1762183896992,0.40001104,105900.0,105870.0,0.3608]
[1762183897294,0.00012042,105890.0,105880.0,0.0944587]
[1762183897498,0.68770094,105930.0,105880.0,0.4552587]
[1762183897499,0.3608,105930.0,105880.0,0.4552587]
[1762183897799,0.003,105970.0,105920.0,0.7216]
[1762183897990,0.33149263,105970.0,105940.0,0.28414976]
[1762183898296,0.14053,105950.0,105890.0,0.28414976]
[1762183898499,0.14053,105950.0,105920.0,0.3608]
[1762183898696,0.32849263,105940.0,105920.0,0.3608]
[1762183898997,0.32849263,105940.0,105890.0,0.3608]
[1762183899294,0.68929263,105930.0,105900.0,0.09440196]
[1762183899495,0.32849263,105920.0,105880.0,0.20003216]
[1762183899695,0.14053,105900.0,105880.0,0.20003216]
[1762183900093,0.14053,105900.0,105860.0,0.00311718]
[1762183900094,0.62098866,105880.0,105860.0,0.00311718]
[1762183900289,0.11353016,105870.0,105860.0,0.00311718]
[1762183900495,0.00010986,105870.0,105860.0,0.78911742]
[1762183900688,0.16201608,105890.0,105880.0,0.0944648]
[1762183900894,0.15675351,105900.0,105890.0,0.0944559]
[1762183901092,0.2106209,105910.0,105890.0,0.44762395]
[1762183901293,0.0340263,105910.0,105900.0,1.00574976]
[1762183901586,0.003,105970.0,105940.0,0.0944109]
[1762183901793,0.003,105970.0,105950.0,0.0943983]
[1762183901998,0.003,105970.0,105960.0,0.3608]
[1762183902496,0.003,105970.0,105960.0,1.06068173]
[1762183902701,0.003,105970.0,105960.0,1.2198942]
[1762183902999,0.32469202,106000.0,105990.0,0.0943678]
[1762183903197,0.32469202,106000.0,105990.0,0.23588]
[1762183903397,0.32469202,106000.0,105960.0,0.24463064]
[1762183903398,0.32469202,106000.0,105960.0,0.00876793]
[1762183903588,0.32469202,106000.0,105990.0,0.3608]
[1762183903790,0.24044783,106000.0,105990.0,0.3608]
[1762183903986,0.07816271,106010.0,105990.0,0.4551648]
[1762183904192,0.003,106010.0,106000.0,0.3608]
[1762183904800,0.003,106010.0,106000.0,0.4551584]
[1762183904993,0.003,106010.0,106000.0,0.3608]
[1762183904994,0.62398867,106010.0,106000.0,0.3608]
[1762183905192,0.62398867,106010.0,105970.0,0.28414976]
[1762183905193,0.26690783,106000.0,105970.0,0.3608]
[1762183905394,0.26617383,105980.0,105930.0,0.455218]
[1762183905595,0.62770783,106000.0,105930.0,0.455218]
[1762183905596,0.08121727,105940.0,105930.0,0.3608]
[1762183905796,0.08121727,105950.0,105930.0,0.3608]
[1762183906098,0.16699,105950.0,105920.0,0.3608]
[1762183906292,0.26617383,105940.0,105910.0,0.3608]
[1762183906488,0.17698999,106000.0,105930.0,0.501939]
[1762183906799,0.08119754,105940.0,105930.0,0.5496133]
[1762183907098,0.16699,106000.0,105940.0,0.23596]
[1762183907303,0.21066708,105990.0,105960.0,0.37854366]
[1762183907499,0.21066708,105990.0,105960.0,0.73934366]
[1762183907796,0.21066708,105990.0,105960.0,0.48196366]
[1762183908199,0.21066708,105990.0,105970.0,0.3303]
[1762183908402,0.003,106010.0,105970.0,0.59672]
[1762183908705,0.68691828,106000.0,105970.0,0.09436187]
[1762183909006,0.78127728,106000.0,105970.0,0.45516187]
[1762183909196,0.0943685,105990.0,105970.0,0.09436187]
[1762183909393,0.0943833,105980.0,105970.0,0.05808181]
[1762183909597,0.4551833,105980.0,105970.0,0.04965283]
[1762183909900,0.78130158,105980.0,105960.0,0.08386438]
[1762183910202,0.68691828,105970.0,105960.0,0.02505196]
[1762183910398,0.3608,105970.0,105960.0,0.05009339]
[1762183910604,0.32611828,105970.0,105960.0,0.04437007]
[1762183910901,1.04771828,105970.0,105960.0,0.02505362]
[1762183911101,0.76429111,105970.0,105960.0,0.02505362]
[1762183911304,0.32611828,105970.0,105950.0,0.02505362]
[1762183911519,0.68691828,105960.0,105940.0,0.11741014]
[1762183911694,0.3608,105950.0,105940.0,0.11741014]
[1762183912093,0.3608,105970.0,105940.0,0.11741014]
[1762183912302,0.3608,105960.0,105950.0,0.08332572]
[1762183912499,0.3608,105960.0,105930.0,0.11741014]
[1762183912500,0.32611828,105960.0,105940.0,0.08332572]
[1762183912701,0.32611828,105960.0,105930.0,0.08332572]
[1762183912702,0.3608,105960.0,105930.0,0.08332572]
[1762183912905,0.3608,105970.0,105940.0,0.08332572]
[1762183913098,0.3608,105960.0,105940.0,0.08332572]
[1762183913405,0.3608,105990.0,105950.0,0.23596]
[1762183913602,0.3608,105990.0,105950.0,0.08332572]
[1762183914009,0.3608,105980.0,105950.0,0.08332572]
[1762183914200,0.32611828,105980.0,105940.0,0.08332572]
[1762183914400,0.52779,105950.0,105920.0,0.20073586]
[1762183914709,0.3608,105930.0,105920.0,0.01476547]
[1762183915099,0.68691828,105930.0,105920.0,0.01476547]
[1762183915404,0.32611828,105930.0,105900.0,0.00320984]
[1762183915704,0.68691828,105930.0,105920.0,0.02494868]
[1762183915904,0.68691828,105930.0,105920.0,0.03971748]
[1762183916108,0.68691828,105930.0,105910.0,0.02494868]
[1762183916304,0.68691828,105930.0,105900.0,0.03647475]
[1762183916305,0.68691828,105920.0,105900.0,0.02446324]
[1762183916505,0.68691828,105910.0,105900.0,0.02446324]
[1762183916808,0.68691828,105910.0,105900.0,0.00320984]
[1762183917003,0.16699,105900.0,105870.0,0.03326491]
[1762183917207,0.7216,105880.0,105870.0,0.04803814]
[1762183917506,0.094473,105890.0,105870.0,0.0480397]
[1762183917803,0.622248,105900.0,105870.0,0.378574]
[1762183918105,8.831e-05,105890.0,105880.0,0.23612]
[1762183918309,8.831e-05,105890.0,105860.0,0.32053185]
[1762183918509,8.831e-05,105890.0,105860.0,0.06593313]
[1762183918810,0.0944832,105870.0,105860.0,0.06593313]
[1762183919010,0.0944832,105870.0,105860.0,0.03266822]
[1762183919310,0.09455741,105890.0,105860.0,0.36327922]
[1762183919499,0.45535741,105890.0,105860.0,0.52118413]
[1762183919808,0.3608,105910.0,105870.0,0.52026976]
[1762183920108,0.0944387,105920.0,105900.0,0.64494976]
[1762183920406,0.0944348,105930.0,105910.0,0.23604]
[1762183920604,0.3608,105940.0,105910.0,0.36001782]
[1762183920804,0.0944386,105920.0,105910.0,0.45492844]
[1762183921008,0.0944386,105920.0,105910.0,0.36002962]
[1762183921306,0.0944386,105920.0,105910.0,0.02953862]
[1762183921307,0.38158053,105920.0,105910.0,0.02953862]
[1762183921508,0.05546225,105920.0,105910.0,0.02953862]
[1762183921705,0.52779,105950.0,105910.0,0.02953862]
[1762183922005,0.85390828,105950.0,105920.0,0.3608]
[1762183922201,0.16699,105950.0,105920.0,0.76892668]
[1762183922404,0.3608,105960.0,105920.0,0.39033862]
[1762183922607,0.3608,105960.0,105920.0,0.67448838]
[1762183922608,0.43472961,105960.0,105920.0,0.67448838]
[1762183922803,0.32611828,105950.0,105930.0,0.3608]
[1762183923009,0.49310828,105950.0,105930.0,0.02953862]
[1762183923202,0.68691828,105940.0,105930.0,0.02953862]
[1762183923706,1.04771828,105940.0,105890.0,0.3608]
[1762183923914,0.3608,105910.0,105890.0,0.3608]
[1762183924411,0.68691828,105920.0,105890.0,0.3608]
[1762183924609,0.32611828,105920.0,105880.0,0.64494976]
[1762183924803,0.52779,105900.0,105860.0,0.00311718]
[1762183925002,0.16699,105900.0,105880.0,0.09441533]
[1762183925210,0.3608,105890.0,105860.0,0.00311718]
[1762183925513,0.32611828,105890.0,105860.0,0.38175244]
[1762183925808,0.49310828,105900.0,105870.0,0.0944842]
[1762183926014,0.16699,105900.0,105880.0,0.4552751]
[1762183926203,0.3608,105920.0,105880.0,0.3608]
[1762183926405,0.3608,105930.0,105900.0,0.4552576]
[1762183926406,0.68691828,105930.0,105900.0,0.4552576]
[1762183926610,0.68691828,105930.0,105890.0,0.28414976]
[1762183926611,0.32611828,105930.0,105890.0,0.28414976]
[1762183926809,0.43762083,105940.0,105890.0,0.64494976]
[1762183927015,0.85390828,105950.0,105910.0,0.3608]
[1762183927213,0.3608,105940.0,105890.0,0.09441533]
[1762183927513,0.68691828,105940.0,105900.0,0.3608]
[1762183927717,0.68691828,105940.0,105890.0,0.73940876]
[1762183927906,0.68691828,105940.0,105900.0,0.094457]
[1762183928106,0.49310828,105950.0,105920.0,0.0944341]
[1762183928304,0.16699,105950.0,105920.0,0.3608]
[1762183928505,0.49310828,105950.0,105920.0,0.4552392]
[1762183928714,0.3638,105970.0,105930.0,0.28414976]
[1762183928907,0.3638,105970.0,105960.0,0.0944053]
[1762183928908,0.02619053,105970.0,105960.0,0.0944053]
[1762183929109,0.55992587,106000.0,105960.0,0.7216]
[1762183929309,0.4581665,106010.0,106000.0,0.0943692]
[1762183929310,0.03513587,106010.0,106000.0,0.0943692]
[1762183929514,0.03213587,106020.0,106000.0,0.0943692]
[1762183929817,0.03245508,106020.0,106010.0,0.59664]
[1762183930117,0.09435,106020.0,106010.0,0.3608]
[1762183930320,0.0943506,106020.0,106010.0,0.3608]
[1762183930616,0.32611828,106030.0,106010.0,0.3608]
[1762183930812,0.3608,106040.0,106020.0,0.3608]
[1762183931015,0.3608,106040.0,106010.0,0.73930936]
[1762183931207,0.0943436,106030.0,106010.0,0.45512627]
[1762183931412,0.0943425,106030.0,106010.0,0.3608]
[1762183931614,0.0943452,106030.0,106010.0,0.3608]
[1762183931810,0.78125718,106040.0,106010.0,0.3608]
[1762183932019,0.4551435,106040.0,106010.0,0.3608]
[1762183932222,0.4551435,106040.0,106010.0,0.4551599]
[1762183932518,0.3608,106040.0,106010.0,0.73930996]
[1762183932714,0.50433,106050.0,106020.0,0.4551513]
[1762183933017,0.14353,106050.0,106020.0,0.3608]
[1762183933213,0.0943363,106040.0,106020.0,0.3608]
[1762183933407,0.0943419,106040.0,106020.0,0.3608]
[1762183933609,0.42046018,106040.0,106010.0,0.73930976]
[1762183933816,0.92477828,106050.0,106010.0,0.73930976]
[1762183934010,0.0943372,106040.0,106010.0,0.73930976]
[1762183934324,0.0943337,106040.0,106010.0,0.97430172]
[1762183934507,0.0943346,106040.0,106010.0,0.87994622]
[1762183934825,0.32611828,106030.0,106020.0,0.0943515]
[1762183935013,0.14353,106050.0,106030.0,0.0943436]
[1762183935314,0.0973268,106050.0,106030.0,0.64494976]
[1762183935618,0.0973268,106050.0,106030.0,0.38973772]
[1762183935619,0.0943349,106040.0,106030.0,0.38973772]
[1762183935810,0.93300318,106040.0,106030.0,0.02893772]
[1762183936209,0.83866828,106040.0,106030.0,0.02893772]
[1762183936512,0.15175,106040.0,106030.0,0.02893772]
[1762183937114,0.47786828,106040.0,106030.0,0.02893772]
[1762183937315,0.93300318,106040.0,106030.0,0.02893772]
[1762183937521,0.93300318,106040.0,106030.0,0.01419314]
[1762183937817,0.57220318,106040.0,106030.0,0.02893963]
[1762183938010,0.93300318,106040.0,106030.0,0.02893963]
[1762183938316,0.83866828,106040.0,106030.0,0.06238215]
[1762183938512,0.2460826,106040.0,106030.0,0.06238215]
[1762183938714,0.2460826,106040.0,106030.0,0.38973963]
[1762183938915,0.93300088,106040.0,106030.0,0.02870817]
[1762183939312,0.93300088,106040.0,106030.0,0.02365279]
[1762183939514,0.57220088,106040.0,106030.0,0.02365279]
[1762183939716,0.93300088,106040.0,106030.0,0.02365279]
[1762183940318,0.47786828,106040.0,106030.0,0.02365279]
[1762183940515,0.15175,106040.0,106030.0,0.02365279]
[1762183940710,0.47786828,106040.0,106030.0,0.02365279]
[1762183941117,0.15175,106040.0,106030.0,0.11799509]
[1762183941614,0.32611828,106040.0,106030.0,0.02365279]
[1762183941813,0.47786828,106040.0,106030.0,0.02365279]
[1762183942017,0.47786828,106040.0,106030.0,0.47879509]
[1762183942324,0.15175,106040.0,106030.0,0.11799509]
[1762183942616,0.83866828,106040.0,106030.0,0.02365279]
[1762183943517,0.15175,106000.0,105990.0,0.41096379]
[1762183943721,0.40318933,106000.0,105990.0,0.15869059]
[1762183943910,0.40318933,106000.0,105990.0,0.06431749]
[1762183944114,0.76398933,106000.0,105990.0,0.0141537]
[1762183944414,0.95831,106040.0,105990.0,0.42511749]
[1762183944618,0.26897611,106030.0,106000.0,0.4551623]
[1762183944818,7.507e-05,106030.0,106020.0,0.3608]
[1762183945028,7.507e-05,106030.0,106000.0,0.41096379]
[1762183945029,0.26897611,106030.0,106000.0,0.41096379]
[1762183945212,0.26890104,106020.0,106010.0,0.094353]
[1762183945522,0.26890104,106020.0,106010.0,0.455153]
[1762183945720,0.26897611,106030.0,106010.0,0.455153]
[1762183946022,0.26897611,106030.0,106010.0,0.50531679]
[1762183946316,0.26890104,106020.0,106000.0,0.05016379]
[1762183946521,0.26890104,106020.0,106000.0,0.41096379]
[1762183946714,0.26890104,106020.0,106000.0,0.05016379]
[1762183946919,0.15362,106000.0,105990.0,0.50533459]
[1762183947122,0.26890104,106020.0,105990.0,0.4551703]
[1762183947426,0.09441707,106030.0,105990.0,0.4551703]
[1762183947427,0.62977611,106030.0,106000.0,0.41089718]
[1762183947615,0.0943452,106020.0,106000.0,0.41089718]
[1762183947926,0.26890104,106020.0,106010.0,0.0943533]
[1762183948111,7.507e-05,106030.0,106010.0,0.3608]
[1762183948317,7.507e-05,106030.0,106020.0,0.4551444]
[1762183949016,0.003,106050.0,106020.0,0.4551444]
[1762183949017,0.003,106050.0,106030.0,0.0943282]
[1762183949219,0.26890104,106040.0,106030.0,0.4551327]
[1762183949921,0.24799999,106040.0,106030.0,0.3608]
[1762183950121,0.87770593,106040.0,106020.0,0.14444228]
[1762183950326,0.26890104,106030.0,106020.0,0.50524228]
[1762183950518,0.26890104,106030.0,106020.0,0.41089718]
[1762183950718,0.0943454,106020.0,106010.0,0.05009718]
[1762183950915,0.36325324,106020.0,106010.0,0.05009718]